bitfinex/quotes_BTCUSD_20250408
["timestamp","ask_amount","ask_price","bid_price","bid_amount"]
[1744135987030,0.85266604,77183.0,77177.0,0.005]
[1744135987234,0.87266337,77183.0,77177.0,0.005]
[1744135987570,0.75833597,77183.0,77177.0,0.005]
[1744135988710,0.75833597,77183.0,77182.0,0.001335]
[1744135990361,0.48625597,77183.0,77182.0,0.001335]
[1744135990965,0.75833597,77183.0,77182.0,0.001335]
[1744135991159,0.74537997,77183.0,77182.0,0.001335]
[1744135991821,0.48625597,77183.0,77182.0,0.001335]
[1744135992143,0.75833597,77183.0,77182.0,0.001335]
[1744135992558,0.35999733,77183.0,77182.0,0.001335]
[1744135994795,0.012954,77196.0,77182.0,0.014291]
[1744135994946,0.25911,77187.0,77183.0,0.19828]
[1744135995151,0.259104,77189.0,77183.0,0.19828]
[1744135995327,0.012955,77190.0,77183.0,0.19828]
[1744135995527,0.012955,77189.0,77183.0,0.19828]
[1744135995749,0.25911,77188.0,77183.0,0.19828]
[1744135995953,0.10326386,77187.0,77182.0,0.001335]
[1744135996167,0.01956181,77187.0,77184.0,0.19828]
[1744135996346,0.012955,77190.0,77184.0,0.19828]
[1744135996541,0.34,77188.0,77184.0,0.19828]
[1744135996743,0.259117,77185.0,77184.0,0.19828]
[1744135997106,0.272072,77185.0,77184.0,0.19828]
[1744135997697,0.34,77189.0,77184.0,0.19828]
[1744135998043,0.36018126,77189.0,77184.0,0.19828]
[1744135998700,0.001,77185.0,77184.0,0.19828]
[1744135999080,0.001,77185.0,77184.0,0.457401]
[1744135999253,0.02018126,77189.0,77184.0,0.211236]
[1744135999453,0.34,77191.0,77184.0,0.211236]
[1744135999650,0.34,77191.0,77184.0,0.19828]
[1744135999884,0.34,77191.0,77184.0,0.19928]
[1744135999885,0.599097,77191.0,77184.0,0.19928]
[1744136000077,0.272062,77190.0,77184.0,0.19928]
[1744136000275,0.259107,77190.0,77184.0,0.19828]
[1744136000475,0.259107,77190.0,77184.0,0.19928]
[1744136000677,0.599097,77191.0,77184.0,0.19928]
[1744136000924,0.599097,77191.0,77184.0,0.19828]
[1744136001142,0.259102,77190.0,77184.0,0.19828]
[1744136001355,0.259096,77192.0,77184.0,0.457394]
[1744136001590,0.34,77191.0,77184.0,0.457394]
[1744136001798,0.00041807,77194.0,77187.0,0.272062]
[1744136001903,0.00041807,77194.0,77186.0,0.259113]
[1744136002117,0.00041807,77194.0,77186.0,0.259114]
[1744136002311,0.25951107,77194.0,77186.0,0.259114]
[1744136002518,0.00041807,77194.0,77186.0,0.259114]
[1744136002718,0.00041807,77194.0,77184.0,0.4584]
[1744136002959,0.25950507,77194.0,77185.0,0.259116]
[1744136003157,0.259093,77193.0,77185.0,0.259116]
[1744136003337,0.259097,77192.0,77184.0,0.4584]
[1744136003520,0.2787811,77192.0,77184.0,0.19928]
[1744136003733,0.0196841,77192.0,77185.0,0.259115]
[1744136003936,0.25950507,77194.0,77185.0,0.259115]
[1744136004142,0.01337207,77194.0,77184.0,0.19828]
[1744136004340,0.00041807,77194.0,77185.0,0.001]
[1744136004538,0.259093,77193.0,77185.0,0.259117]
[1744136004792,0.25909,77193.0,77185.0,0.259117]
[1744136005031,0.25950607,77194.0,77185.0,0.260115]
[1744136005032,0.00041807,77194.0,77185.0,0.260115]
[1744136005184,0.012954,77192.0,77185.0,0.001]
[1744136005345,0.012955,77190.0,77185.0,0.001]
[1744136005553,0.259107,77188.0,77185.0,0.001]
[1744136005755,0.259114,77186.0,77185.0,0.001]
[1744136006209,0.259117,77186.0,77184.0,0.19828]
[1744136006412,0.272072,77186.0,77184.0,0.19828]
[1744136006644,0.272072,77186.0,77185.0,0.001]
[1744136006645,0.3174168,77186.0,77185.0,0.001]
[1744136006814,0.272072,77185.0,77184.0,0.19828]
[1744136008236,0.34,77190.0,77184.0,0.19828]
[1744136008414,0.02001763,77193.0,77189.0,0.012955]
[1744136008615,0.00041807,77194.0,77189.0,0.272058]
[1744136008817,0.00041807,77194.0,77189.0,0.259103]
[1744136009041,0.00041807,77194.0,77193.0,0.25909]
[1744136009273,0.00041807,77194.0,77193.0,0.518484]
[1744136009479,0.00041807,77194.0,77193.0,1.68580349]
[1744136009619,0.00041807,77194.0,77193.0,1.27296]
[1744136010006,0.27445907,77194.0,77193.0,1.02652]
[1744136010227,0.012955,77190.0,77189.0,0.1978]
[1744136010453,0.272055,77190.0,77189.0,0.1978]
[1744136010657,0.259091,77193.0,77189.0,0.1978]
[1744136010827,0.00341807,77194.0,77189.0,0.1978]
[1744136011239,0.00441807,77194.0,77193.0,0.002]
[1744136011441,0.00241807,77194.0,77190.0,0.0025909]
[1744136011678,0.00241807,77194.0,77189.0,0.1978]
[1744136011879,0.00041807,77194.0,77189.0,0.459903]
[1744136012080,0.00141807,77194.0,77193.0,0.001]
[1744136012618,0.00041807,77194.0,77189.0,0.2008]
[1744136012824,0.00041807,77194.0,77189.0,0.2018]
[1744136013045,0.00041807,77194.0,77189.0,0.457904]
[1744136013271,0.00041807,77194.0,77189.0,0.1988]
[1744136013491,0.00041807,77194.0,77193.0,0.001]
[1744136013632,0.00141807,77194.0,77193.0,0.001]
[1744136014063,0.32671198,77194.0,77193.0,0.001]
[1744136014238,0.27345907,77194.0,77193.0,0.001]
[1744136014667,0.272055,77190.0,77189.0,0.1978]
[1744136015396,0.272055,77190.0,77189.0,0.1988]
[1744136015741,0.272055,77190.0,77189.0,0.1978]
[1744136015939,0.27245907,77194.0,77189.0,0.1988]
[1744136016160,0.27245907,77194.0,77189.0,0.211755]
[1744136016161,0.00041807,77194.0,77189.0,0.211755]
[1744136016371,0.00041807,77194.0,77192.0,0.25909]
[1744136017012,0.00041807,77194.0,77189.0,0.1978]
[1744136017323,0.2591,77190.0,77189.0,0.1998]
[1744136017486,0.2591,77190.0,77189.0,0.1978]
[1744136018268,0.259097,77192.0,77189.0,0.1978]
[1744136018511,0.259098,77191.0,77189.0,0.1978]
[1744136018829,0.272055,77190.0,77189.0,0.1978]
[1744136019043,0.61208,77183.0,77182.0,0.000335]
[1744136019245,0.73833864,77183.0,77182.0,0.000335]
[1744136020384,0.77872062,77183.0,77182.0,0.000335]
[1744136020585,0.78072062,77183.0,77182.0,0.000335]
[1744136020821,0.90697607,77183.0,77182.0,0.000335]
[1744136021034,0.86659409,77183.0,77182.0,0.000335]
[1744136021236,0.9069757,77183.0,77182.0,0.000335]
[1744136021435,0.9109757,77183.0,77182.0,0.000335]
[1744136021787,0.9069757,77183.0,77182.0,0.000335]
[1744136021989,0.78072025,77183.0,77182.0,0.000335]
[1744136022211,0.78772025,77183.0,77182.0,0.000335]
[1744136022490,0.74533864,77183.0,77182.0,0.000335]
[1744136022860,0.34,77178.0,77153.0,0.0003352]
[1744136023059,0.17363392,77183.0,77153.0,0.0003352]
[1744136023060,0.272182,77154.0,77153.0,0.0003352]
[1744136023613,0.42622921,77154.0,77153.0,0.0003352]
[1744136023755,0.69841121,77154.0,77153.0,0.0003352]
[1744136024183,0.71676866,77154.0,77153.0,0.0003352]
[1744136024379,0.71776866,77154.0,77153.0,0.00246074]
[1744136024580,0.59151002,77154.0,77153.0,0.00246074]
[1744136024783,0.31932802,77154.0,77153.0,0.00246074]
[1744136024981,0.29153945,77154.0,77153.0,0.00246074]
[1744136025402,0.29653945,77154.0,77153.0,0.00246074]
[1744136025605,0.02435745,77154.0,77153.0,0.00246074]
[1744136025782,0.03131845,77154.0,77153.0,0.00046074]
[1744136026192,0.03531845,77154.0,77153.0,0.00046074]
[1744136026392,0.03831845,77154.0,77153.0,0.00046074]
[1744136026608,0.03531845,77154.0,77153.0,0.00046074]
[1744136027133,0.03731845,77154.0,77153.0,0.00046074]
[1744136028848,0.02435745,77154.0,77153.0,0.00046074]
[1744136029017,0.02435745,77154.0,77153.0,0.25968574]
[1744136029018,0.006,77154.0,77153.0,0.25968574]
[1744136029396,0.006,77154.0,77153.0,0.27264674]
[1744136029828,0.004,77154.0,77153.0,0.27264674]
[1744136030062,0.005,77154.0,77153.0,0.27264674]
[1744136030589,0.004,77154.0,77153.0,0.27264674]
[1744136030807,0.34,77169.0,77167.0,0.259177]
[1744136030942,0.259161,77172.0,77165.0,0.012959]
[1744136031149,0.259161,77172.0,77166.0,0.25918]
[1744136031360,0.259158,77173.0,77167.0,0.259178]
[1744136031568,0.012958,77169.0,77164.0,0.19788]
[1744136031767,0.259165,77171.0,77164.0,0.19788]
[1744136032065,0.259175,77168.0,77164.0,0.19788]
[1744136032246,0.004,77169.0,77165.0,0.259184]
[1744136032586,0.259168,77170.0,77164.0,0.457066]
[1744136032891,0.012957,77174.0,77164.0,0.19788]
[1744136033029,0.272123,77171.0,77164.0,0.19788]
[1744136033230,0.272123,77171.0,77165.0,0.259184]
[1744136033582,0.259161,77172.0,77167.0,0.259178]
[1744136033725,0.34,77172.0,77167.0,0.272136]
[1744136033925,0.34,77172.0,77167.0,0.012958]
[1744136034128,0.34,77172.0,77171.0,0.259164]
[1744136034397,0.34,77172.0,77169.0,0.259168]
[1744136034587,0.01869726,77174.0,77171.0,0.012958]
[1744136034723,0.259175,77168.0,77163.0,0.26913825]
[1744136034933,0.259184,77165.0,77151.0,0.0003352]
[1744136035135,0.272143,77165.0,77156.0,0.259211]
[1744136035336,0.82133864,77165.0,77151.0,0.0003352]
[1744136035544,0.73840164,77165.0,77155.0,0.259217]
[1744136035862,0.259207,77159.0,77155.0,0.1974]
[1744136036233,0.259211,77157.0,77155.0,0.1974]
[1744136036436,0.612182,77154.0,77153.0,0.00046074]
[1744136036637,0.73844064,77154.0,77153.0,0.00046074]
[1744136036997,0.86469609,77154.0,77153.0,0.00046074]
[1744136038282,0.73844064,77154.0,77153.0,0.00046074]
[1744136038602,0.612182,77154.0,77153.0,0.00046074]
[1744136038929,0.003,77154.0,77153.0,0.00046074]
[1744136039104,0.259221,77154.0,77153.0,0.00046074]
[1744136039466,0.603221,77154.0,77153.0,0.00046074]
[1744136039668,0.599221,77154.0,77153.0,0.00046074]
[1744136040100,0.619182,77154.0,77153.0,0.00046074]
[1744136040330,0.616182,77154.0,77153.0,0.00046074]
[1744136040559,0.74244064,77154.0,77153.0,0.00046074]
[1744136040904,0.344,77154.0,77153.0,0.01342174]
[1744136041105,0.344,77154.0,77153.0,0.00046074]
[1744136041503,0.34,77154.0,77153.0,0.00046074]
[1744136041707,0.34,77154.0,77153.0,0.00146074]
[1744136041946,0.34,77154.0,77153.0,0.27364674]
[1744136042123,0.38944696,77180.0,77165.0,0.012959]
[1744136042460,0.012957,77173.0,77166.0,0.1974]
[1744136042600,0.612118,77173.0,77166.0,0.1974]
[1744136042807,0.259221,77154.0,77153.0,0.00146074]
[1744136043003,0.259219,77155.0,77153.0,0.00046074]
[1744136043259,0.259221,77154.0,77153.0,0.00046074]
[1744136043561,0.272182,77154.0,77153.0,0.00046074]
[1744136043764,0.612182,77154.0,77153.0,0.00046074]
[1744136044529,0.599221,77154.0,77153.0,0.00046074]
[1744136044980,0.34,77154.0,77153.0,0.00046074]
[1744136045594,0.599221,77154.0,77153.0,0.00346074]
[1744136045768,0.34,77154.0,77153.0,0.00346074]
[1744136045964,0.259216,77156.0,77153.0,0.00346074]
[1744136046396,0.34,77160.0,77153.0,0.25968174]
[1744136046616,0.01296,77159.0,77153.0,0.00046074]
[1744136046821,0.612182,77154.0,77153.0,0.00346074]
[1744136047192,0.73844064,77154.0,77153.0,0.00346074]
[1744136048032,0.73844064,77154.0,77153.0,0.00046074]
[1744136048233,0.73844064,77154.0,77153.0,0.00346074]
[1744136048528,0.86454214,77154.0,77153.0,0.00046074]
[1744136048681,0.73844064,77154.0,77153.0,0.00046074]
[1744136048891,0.272168,77159.0,77153.0,0.00046074]
[1744136048892,0.259191,77164.0,77153.0,0.00246074]
[1744136049098,0.012959,77165.0,77155.0,0.272172]
[1744136049303,0.272171,77157.0,77156.0,0.19744]
[1744136049566,0.272182,77154.0,77153.0,0.00246074]
[1744136049864,0.39844064,77154.0,77153.0,0.00046074]
[1744136050104,0.40044064,77154.0,77153.0,0.00046074]
[1744136051227,0.39844064,77154.0,77153.0,0.00046074]
[1744136052132,0.40344064,77154.0,77153.0,0.00046074]
[1744136052557,0.74044064,77154.0,77153.0,0.00046074]
[1744136052760,0.74444064,77154.0,77153.0,0.00046074]
[1744136055031,0.78483721,77154.0,77153.0,0.00046074]
[1744136055508,0.78283721,77154.0,77153.0,0.00046074]
[1744136055680,0.73844064,77154.0,77153.0,0.00046074]
[1744136055831,0.91408692,77154.0,77153.0,0.00046074]
[1744136056185,0.87369609,77154.0,77153.0,0.00046074]
[1744136056422,0.87169609,77154.0,77153.0,0.00046074]
[1744136056705,0.92108206,77154.0,77153.0,0.00046074]
[1744136056939,0.88069609,77154.0,77153.0,0.00046074]
[1744136057623,0.75444064,77154.0,77153.0,0.00046074]
[1744136058241,0.74744064,77154.0,77153.0,0.00046074]
[1744136058647,0.75444064,77154.0,77153.0,0.00046074]
[1744136060716,0.288182,77154.0,77153.0,0.00046074]
[1744136060892,0.75444064,77154.0,77153.0,0.00046074]
[1744136061053,0.88069609,77154.0,77153.0,0.00046074]
[1744136061262,0.88069609,77154.0,77153.0,7.4e-07]
[1744136061461,0.87169609,77154.0,77153.0,7.4e-07]
[1744136061666,0.91207441,77154.0,77153.0,7.4e-07]
[1744136061870,0.91107441,77154.0,77153.0,7.4e-07]
[1744136062067,0.87469609,77154.0,77153.0,7.4e-07]
[1744136062272,0.86869609,77154.0,77153.0,7.4e-07]
[1744136062584,0.87369609,77154.0,77153.0,7.4e-07]
[1744136062783,0.88169609,77154.0,77153.0,7.4e-07]
[1744136062985,0.75544064,77154.0,77153.0,7.4e-07]
[1744136064504,0.612189,77152.0,77151.0,9.4e-07]
[1744136064705,0.73844764,77152.0,77151.0,0.00012669]
[1744136064890,0.73844764,77152.0,77151.0,6.9e-07]
[1744136065085,0.86470309,77152.0,77151.0,6.9e-07]
[1744136065784,0.88070309,77152.0,77151.0,6.9e-07]
[1744136065986,0.79667623,77152.0,77151.0,6.9e-07]
[1744136066437,0.80963723,77152.0,77151.0,6.9e-07]
[1744136067695,0.85793723,77152.0,77151.0,6.9e-07]
[1744136069660,0.73168178,77152.0,77151.0,6.9e-07]
[1744136070242,0.74622263,77152.0,77151.0,6.9e-07]
[1744136070444,0.73622263,77152.0,77151.0,6.9e-07]
[1744136071470,0.78312263,77152.0,77151.0,6.9e-07]
[1744136071665,0.78812263,77152.0,77151.0,6.9e-07]
[1744136071861,0.272225,77142.0,77141.0,1e-06]
[1744136072057,0.39848364,77142.0,77141.0,0.00012681]
[1744136072452,0.73848364,77142.0,77141.0,0.00012681]
[1744136073500,0.74548364,77142.0,77141.0,0.00012681]
[1744136074044,0.75248364,77142.0,77141.0,0.00012681]
[1744136074757,0.74548364,77142.0,77141.0,0.00012681]
[1744136074948,0.81196892,77142.0,77141.0,0.00012681]
[1744136076012,0.75348364,77142.0,77141.0,0.00012681]
[1744136076524,0.015,77142.0,77141.0,0.00012681]
[1744136076832,0.287225,77142.0,77141.0,0.00012681]
[1744136077354,0.279225,77142.0,77141.0,0.00012681]
[1744136077681,0.41248364,77142.0,77141.0,0.00012681]
[1744136077882,0.5353966,77142.0,77141.0,0.00012681]
[1744136078199,0.40548364,77142.0,77141.0,0.00012681]
[1744136078597,0.41148364,77142.0,77141.0,0.00012681]
[1744136079462,0.41148364,77142.0,77141.0,0.27235481]
[1744136079463,0.013,77142.0,77141.0,0.27235481]
[1744136079588,0.013,77142.0,77141.0,0.25939181]
[1744136079793,0.013,77142.0,77141.0,0.27235481]
[1744136080636,0.006,77142.0,77141.0,0.31865481]
[1744136081053,0.03115323,77174.0,77167.0,0.259176]
[1744136081309,0.03115323,77174.0,77165.0,0.272142]
[1744136081310,0.012958,77171.0,77165.0,0.19696]
[1744136081516,0.259169,77170.0,77166.0,0.259179]
[1744136081714,0.259152,77175.0,77170.0,0.012958]
[1744136081922,0.272109,77175.0,77170.0,0.272126]
[1744136082116,0.34,77174.0,77170.0,0.259167]
[1744136082317,0.01877689,77176.0,77174.0,0.259152]
[1744136082522,0.259131,77181.0,77175.0,0.012957]
[1744136082842,0.259131,77181.0,77174.0,0.259153]
[1744136082843,0.259139,77179.0,77174.0,0.259153]
[1744136083009,0.259139,77179.0,77175.0,0.25915]
[1744136083244,0.0001676,77183.0,77180.0,0.259134]
[1744136083422,0.0001676,77183.0,77182.0,0.364683]
[1744136083423,6e-07,77183.0,77182.0,0.364683]
[1744136083794,6e-07,77183.0,77182.0,0.50548249]
[1744136083999,0.0001676,77204.0,77184.0,0.28661785]
[1744136084196,0.0001676,77204.0,77184.0,0.41287649]
[1744136084398,0.0131196,77204.0,77184.0,0.41287649]
[1744136084605,0.0001676,77204.0,77184.0,0.41287649]
[1744136084939,0.0001676,77204.0,77184.0,0.28661785]
[1744136085263,0.259076,77198.0,77184.0,0.272077]
[1744136085454,0.0011676,77185.0,77184.0,0.278077]
[1744136085838,0.0021676,77185.0,77184.0,0.42687649]
[1744136086036,0.0011676,77185.0,77184.0,0.41887649]
[1744136086239,0.0011676,77185.0,77184.0,0.278077]
[1744136086436,0.0011676,77185.0,77184.0,0.006]
[1744136086688,0.0141226,77185.0,77184.0,0.006]
[1744136086839,0.0011676,77185.0,77184.0,0.006]
[1744136087038,0.259121,77184.0,77182.0,0.24322]
[1744136087248,0.259121,77184.0,77182.0,0.19692]
[1744136088098,0.012956,77183.0,77182.0,0.19692]
[1744136088253,0.259121,77184.0,77182.0,0.19692]
[1744136088461,0.012956,77183.0,77182.0,0.20392]
[1744136088859,0.273077,77184.0,77182.0,0.20392]
[1744136089194,0.272077,77184.0,77182.0,0.19692]
[1744136089402,0.012956,77183.0,77182.0,0.19692]
[1744136089615,0.259121,77184.0,77182.0,0.19692]
[1744136089803,0.0001676,77185.0,77182.0,0.460043]
[1744136090012,0.0001676,77185.0,77182.0,0.473003]
[1744136090181,0.272078,77184.0,77182.0,0.19692]
[1744136090401,0.012956,77183.0,77182.0,0.19692]
[1744136090813,0.012956,77183.0,77182.0,0.19992]
[1744136091015,0.19846246,77183.0,77182.0,0.003]
[1744136091198,0.53846246,77183.0,77182.0,0.003]
[1744136091607,0.012957,77174.0,77173.0,0.19688]
[1744136091809,0.612111,77174.0,77173.0,0.19688]
[1744136092205,0.73836964,77174.0,77173.0,0.19688]
[1744136092401,0.259174,77168.0,77161.0,0.259196]
[1744136092603,0.259174,77168.0,77167.0,1.02736581]
[1744136092913,0.259174,77168.0,77167.0,1.03716877]
[1744136094146,0.272132,77168.0,77167.0,1.03716877]
[1744136094347,0.260174,77168.0,77167.0,1.04316877]
[1744136094565,0.273132,77168.0,77167.0,1.04316877]
[1744136094748,0.261174,77168.0,77167.0,1.05116877]
[1744136095197,0.273132,77168.0,77167.0,1.04516877]
[1744136095564,0.273132,77168.0,77167.0,1.05016877]
[1744136095919,0.273132,77168.0,77167.0,1.04216877]
[1744136096118,0.272132,77168.0,77167.0,1.04216877]
[1744136096319,0.273132,77168.0,77167.0,1.04816877]
[1744136096937,0.260174,77168.0,77167.0,1.04816877]
[1744136097268,0.001,77168.0,77167.0,1.04816877]
[1744136097466,0.260174,77168.0,77167.0,1.04816877]
[1744136097665,0.001,77168.0,77167.0,1.04816877]
[1744136098220,0.260174,77168.0,77167.0,1.04816877]
[1744136098419,0.001,77168.0,77167.0,1.04816877]
[1744136098848,0.001,77168.0,77167.0,1.30734677]
[1744136099187,0.001,77168.0,77167.0,1.04816877]
[1744136099386,0.001,77168.0,77167.0,1.30734677]
[1744136100391,0.260174,77168.0,77167.0,1.04816877]
[1744136100755,0.001,77168.0,77167.0,1.30734677]
[1744136100879,0.001,77168.0,77167.0,1.04816877]
[1744136101241,0.001,77168.0,77167.0,1.30734677]
[1744136101542,0.001,77168.0,77167.0,1.32030477]
[1744136101773,0.001,77168.0,77167.0,1.04816877]
[1744136102350,0.273132,77168.0,77167.0,1.04816877]
[1744136103097,0.273132,77168.0,77167.0,0.02092877]
[1744136103389,0.273132,77168.0,77167.0,8.1e-07]
[1744136103390,0.86564609,77168.0,77167.0,8.1e-07]
[1744136103589,0.001,77168.0,77167.0,8.1e-07]
[1744136103731,0.001,77168.0,77167.0,0.27472831]
[1744136103931,0.001,77168.0,77167.0,0.27213681]
[1744136104534,0.001,77168.0,77167.0,0.27713681]
[1744136104731,0.259125,77183.0,77180.0,0.259133]
[1744136104974,0.0001676,77185.0,77182.0,0.012956]
[1744136105171,0.0131226,77185.0,77183.0,0.19636]
[1744136105372,0.259123,77184.0,77183.0,0.19636]
[1744136105641,0.2592876,77185.0,77183.0,0.19636]
[1744136105759,0.0001676,77185.0,77183.0,0.19636]
[1744136105958,0.259121,77184.0,77183.0,0.19636]
[1744136106164,0.39833564,77184.0,77183.0,0.19636]
[1744136106401,0.0001676,77185.0,77183.0,0.21905263]
[1744136106605,0.0001676,77185.0,77184.0,0.272077]
[1744136107329,0.0001676,77185.0,77184.0,0.320877]
[1744136108938,0.0001676,77185.0,77184.0,0.46167649]
[1744136109142,0.0001676,77185.0,77184.0,0.46667649]
[1744136109471,0.0001676,77185.0,77184.0,0.46167649]
[1744136109690,0.0001676,77185.0,77184.0,0.47067649]
[1744136109892,0.0011676,77185.0,77184.0,0.42313149]
[1744136110152,0.0011676,77185.0,77184.0,0.275332]
[1744136110358,0.0011676,77185.0,77184.0,0.0488]
[1744136110648,0.0011676,77185.0,77184.0,0.267076]
[1744136110848,0.0011676,77185.0,77184.0,0.25412]
[1744136111148,0.0141226,77185.0,77184.0,0.19632]
[1744136111648,0.0021676,77185.0,77184.0,0.009]
[1744136111859,0.0001676,77185.0,77184.0,0.012956]
[1744136112063,0.0011676,77185.0,77184.0,0.008]
[1744136112235,0.00106283,77185.0,77184.0,0.020956]
[1744136112438,0.00206283,77185.0,77184.0,0.02254699]
[1744136112807,0.00306283,77185.0,77184.0,0.03708784]
[1744136113005,0.00106283,77185.0,77184.0,0.03008784]
[1744136113232,0.00106283,77185.0,77184.0,0.03508784]
[1744136113488,0.00106283,77185.0,77184.0,0.16134648]
[1744136113649,0.00106283,77185.0,77184.0,0.15875549]
[1744136113991,0.00106283,77185.0,77184.0,0.15675549]
[1744136114129,0.00106283,77185.0,77184.0,0.16175549]
[1744136114792,0.00106283,77185.0,77184.0,0.16434606]
[1744136114997,0.00106283,77185.0,77184.0,0.18561579]
[1744136115133,6.283e-05,77185.0,77184.0,0.18261579]
[1744136115340,0.00106283,77185.0,77184.0,0.19061579]
[1744136115534,0.0001676,77204.0,77203.0,0.272009]
[1744136115796,0.0001676,77204.0,77203.0,0.71657756]
[1744136115937,0.0001676,77204.0,77203.0,0.74043786]
[1744136116838,0.00358591,77204.0,77203.0,0.74043786]
[1744136117023,0.00358591,77204.0,77203.0,0.76378819]
[1744136117228,0.00458591,77204.0,77203.0,0.76378819]
[1744136117435,0.00158591,77204.0,77203.0,0.76378819]
[1744136117999,9.1e-07,77204.0,77203.0,0.76378819]
[1744136118202,0.0001676,77211.0,77210.0,0.271984]
[1744136118545,0.00029303,77211.0,77210.0,1.43918349]
[1744136118678,0.00012543,77214.0,77213.0,0.271974]
[1744136118878,0.00012543,77214.0,77213.0,0.41277349]
[1744136119670,1.3e-07,77225.0,77221.0,0.012949]
[1744136119914,9.3e-07,77230.0,77229.0,0.28645885]
[1744136120074,9.3e-07,77230.0,77229.0,0.41271749]
[1744136121669,9.3e-07,77230.0,77229.0,0.41771749]
[1744136121886,9.3e-07,77230.0,77229.0,0.61395749]
[1744136122493,9.3e-07,77230.0,77229.0,1.01850323]
[1744136122671,9.3e-07,77230.0,77229.0,1.02250323]
[1744136123007,9.3e-07,77230.0,77229.0,1.06720323]
[1744136123180,9.3e-07,77230.0,77229.0,1.06320323]
[1744136123385,7.3e-07,77232.0,77231.0,0.63145185]
[1744136123588,0.0001675,77235.0,77233.0,0.258955]
[1744136123785,0.0001675,77235.0,77234.0,0.1962]
[1744136123786,0.00029321,77235.0,77234.0,0.1962]
[1744136123988,0.00029321,77235.0,77234.0,0.209147]
[1744136124153,0.00029321,77235.0,77234.0,0.1962]
[1744136124368,0.012948,77230.0,77229.0,0.02761282]
[1744136124573,0.00029321,77235.0,77234.0,0.2719]
[1744136124996,0.00029321,77235.0,77230.0,0.258966]
[1744136125202,0.012948,77230.0,77229.0,0.21481282]
[1744136125405,0.06735962,77230.0,77229.0,0.22381282]
[1744136125781,0.258965,77231.0,77229.0,0.20581282]
[1744136125782,0.258963,77231.0,77229.0,0.20581282]
[1744136126218,0.012948,77230.0,77229.0,0.20581282]
[1744136126666,0.012948,77230.0,77229.0,0.21381282]
[1744136126814,0.27191,77232.0,77229.0,0.21081282]
[1744136127016,0.00029321,77235.0,77234.0,0.012947]
[1744136127217,0.00029321,77235.0,77234.0,0.01553635]
[1744136128029,0.00029321,77235.0,77234.0,0.27448928]
[1744136128277,0.00029321,77235.0,77234.0,0.2719]
[1744136129270,0.00029321,77235.0,77234.0,0.2759]
[1744136130194,0.00029321,77235.0,77234.0,0.2789]
[1744136130896,0.27218921,77235.0,77234.0,0.007]
[1744136131769,0.27218921,77235.0,77234.0,0.003]
[1744136131770,0.25924221,77235.0,77234.0,0.003]
[1744136131971,0.00029321,77235.0,77234.0,0.2749]
[1744136132170,0.00029321,77235.0,77234.0,0.2759]
[1744136132381,0.00029321,77235.0,77234.0,0.004]
[1744136132540,0.00029321,77235.0,77234.0,0.2779]
[1744136134059,0.00029321,77235.0,77234.0,0.006]
[1744136134507,0.00029321,77235.0,77234.0,0.29244085]
[1744136134835,0.00029321,77235.0,77234.0,0.41869949]
[1744136135573,0.00029321,77235.0,77234.0,0.2779]
[1744136135806,0.00029321,77235.0,77234.0,0.41669949]
[1744136136039,0.00029321,77235.0,77234.0,0.41769949]
[1744136136235,0.00029321,77235.0,77234.0,0.42469949]
[1744136136437,0.258897,77251.0,77248.0,0.258906]
[1744136136637,0.258897,77251.0,77249.0,0.19564]
[1744136136800,0.271843,77250.0,77249.0,0.19564]
[1744136137013,0.38129888,77250.0,77249.0,0.20525686]
[1744136137267,0.84755752,77250.0,77249.0,0.20525686]
[1744136137425,0.73810164,77250.0,77249.0,0.20525686]
[1744136137625,0.73810164,77250.0,77249.0,0.00961686]
[1744136137826,0.012948,77230.0,77229.0,8.2e-07]
[1744136138027,0.259023,77213.0,77210.0,1.02584]
[1744136138232,0.25901,77218.0,77213.0,0.259021]
[1744136138573,0.27196,77218.0,77210.0,1.02596571]
[1744136138866,0.271956,77219.0,77213.0,0.259021]
[1744136139270,0.01295,77217.0,77210.0,1.02596571]
[1744136139528,0.01295,77219.0,77213.0,0.004]
[1744136139732,0.258993,77222.0,77217.0,0.259009]
[1744136139939,0.012948,77229.0,77220.0,0.01295]
[1744136140144,0.25898,77226.0,77221.0,0.012949]
[1744136140273,0.352948,77232.0,77226.0,0.012949]
[1744136140616,0.012948,77229.0,77226.0,0.19564]
[1744136140792,0.012948,77231.0,77226.0,0.19564]
[1744136140994,0.258975,77228.0,77226.0,0.19564]
[1744136141605,0.271924,77227.0,77226.0,0.19564]
[1744136142226,0.3560897,77227.0,77226.0,0.19564]
[1744136142428,0.271924,77227.0,77226.0,0.19764]
[1744136142634,0.271914,77231.0,77226.0,0.19764]
[1744136142635,0.012947,77235.0,77227.0,0.012948]
[1744136142774,0.012948,77232.0,77226.0,0.19564]
[1744136143131,0.25897,77230.0,77226.0,0.19764]
[1744136143382,0.002,77227.0,77226.0,0.469568]
[1744136143740,0.258948,77236.0,77232.0,0.25896]
[1744136143933,0.012945,77246.0,77240.0,0.271877]
[1744136144140,0.25893,77241.0,77236.0,0.271891]
[1744136144342,0.258936,77239.0,77236.0,0.271891]
[1744136144720,0.271876,77241.0,77236.0,0.271891]
[1744136144921,0.258943,77237.0,77232.0,0.25896]
[1744136145120,0.012946,77238.0,77228.0,0.27192]
[1744136145121,0.012947,77235.0,77228.0,0.27192]
[1744136145424,0.258949,77236.0,77231.0,0.258963]
[1744136145653,0.012947,77237.0,77230.0,0.012948]
[1744136145887,0.27189,77237.0,77236.0,0.005]
[1744136146126,0.258961,77232.0,77230.0,0.00949877]
[1744136146336,0.258956,77234.0,77231.0,0.258963]
[1744136146481,0.258956,77234.0,77229.0,0.012948]
[1744136146683,0.258951,77235.0,77231.0,0.004]
[1744136146884,0.012947,77237.0,77231.0,0.004]
[1744136146885,0.012946,77238.0,77233.0,0.258956]
[1744136147107,0.258912,77247.0,77242.0,0.012946]
[1744136147315,0.271867,77244.0,77243.0,0.19564]
[1744136148527,0.39812564,77244.0,77243.0,0.19564]
[1744136148879,0.271867,77244.0,77243.0,0.19564]
[1744136149450,0.001,77244.0,77243.0,0.19564]
[1744136149629,0.259919,77244.0,77243.0,0.19564]